bitfinex-derivatives/quotes_SOLF0:USTF0_20250228
["timestamp","ask_amount","ask_price","bid_price","bid_amount"]
[1740748892008,109.92871479,137.9,137.89,7.257]
[1740748892203,1.632e-05,137.9,137.89,7.257]
[1740748892399,15.58,138.09,137.89,3.62]
[1740748892605,239.68002095,138.04,137.88,15.67243377]
[1740748892910,7.26002095,138.04,137.89,232.3]
[1740748893302,7.2507,138.02,137.91,7.2555]
[1740748893499,7.26002095,138.04,137.95,0.05528216]
[1740748893702,0.05136473,137.98,137.96,15.56]
[1740748893899,7.26002095,138.04,137.89,232.3]
[1740748894106,0.04834235,137.98,137.96,0.05244383]
[1740748894308,7.2545,137.94,137.84,7.2596]
[1740748894608,7.2545,137.94,137.82,232.2]
[1740748894609,11.2423,137.97,137.85,15.56]
[1740748895111,18.50232095,137.97,137.85,15.56]
[1740748895408,0.05282051,137.92,137.9,0.05358922]
[1740748895606,0.05282051,137.92,137.91,15.56]
[1740748895905,0.05242378,137.93,137.91,15.56]
[1740748896304,7.31244473,137.93,137.9,0.05358922]
[1740748896904,7.31244473,137.93,137.82,272.05105407]
[1740748897103,7.31244473,137.93,137.83,15.56]
[1740748897409,7.26002095,137.93,137.83,15.56]
[1740748898204,0.05109837,137.89,137.87,0.05570117]
[1740748899103,7.5723,137.97,137.88,15.52]
[1740748899306,3.6759,138.06,137.88,15.52]
[1740748899502,11.3127,138.06,137.93,7.2548]
[1740748899704,18.57272095,138.06,137.94,15.54]
[1740748900404,0.05488743,138.01,137.99,0.04903369]
[1740748900801,7.31217143,138.01,137.99,0.04903369]
[1740748901198,0.05215048,138.01,138.0,15.52]
[1740748901707,7.31217143,138.01,138.0,15.52]
[1740748902203,0.05215048,138.01,138.0,15.52]
[1740748902410,1.30351589,138.17,138.0,19.14]
[1740748902606,254.82002095,138.18,138.0,15.52]
[1740748902806,239.32002095,138.18,138.0,15.52]
[1740748903306,7.26002095,138.18,138.1,7.2456]
[1740748903503,7.26002095,138.18,138.11,15.54]
[1740748903703,0.05218839,138.15,138.11,15.54]
[1740748903904,0.05218839,138.15,138.13,0.05047735]
[1740748904311,8.839e-05,138.15,138.13,198.67047735]
[1740748904506,8.839e-05,138.15,138.14,7.2439]
[1740748904700,200.10766918,138.33,138.14,3.62]
[1740748904907,207.36777852,138.33,138.15,15.62]
[1740748905107,207.36777852,138.33,138.16,1.44759698]
[1740748905301,200.10766918,138.33,138.16,1.44759698]
[1740748905506,200.10766918,138.33,138.27,7.2369]
[1740748905812,207.36777852,138.33,138.23,15.64]
[1740748906109,0.04628539,138.31,138.23,15.64]
[1740748906413,0.04628539,138.31,138.17,15.64]
[1740748906607,7.30639473,138.31,138.17,15.64]
[1740748906798,7.26010934,138.31,138.17,15.64]
[1740748907006,7.26010934,138.31,138.18,7.2418]
[1740748907212,7.26010934,138.31,138.23,0.04852838]
[1740748907213,0.04896707,138.25,138.23,0.04852838]
[1740748907509,3.79,138.3,138.23,0.04852838]
[1740748907711,0.04801869,138.25,138.17,15.64]
[1740748908112,7.26010934,138.25,138.17,15.64]
[1740748908812,0.04945714,138.22,138.2,0.05174315]
[1740748909413,7.30956648,138.22,138.2,0.05174315]
[1740748909705,7.30956648,138.22,138.17,15.64]
[1740748909910,7.30956648,138.22,138.11,15.68]
[1740748910111,7.26010934,138.22,138.11,15.68]
[1740748910810,0.05105057,138.18,138.15,0.052776]
[1740748911314,7.31115991,138.18,138.15,0.052776]
[1740748911710,7.31115991,138.18,138.07,7.2471]
[1740748911907,7.26010934,138.18,138.08,15.76]
[1740748913113,0.05181233,138.14,138.12,0.05295214]
[1740748913717,7.31192167,138.14,138.12,0.05295214]
[1740748914510,0.05181233,138.14,138.12,0.05295214]
[1740748914808,0.05181233,138.14,137.99,15.74]
[1740748915009,7.26010934,138.14,137.99,15.74]
[1740748915210,7.2459,138.11,138.0,7.2512]
[1740748915408,3.8615,138.13,137.99,15.74]
[1740748915607,11.12160934,138.13,137.99,15.74]
[1740748916012,0.04940133,138.07,137.99,15.74]
[1740748916412,0.04940133,138.07,138.01,7.2502]
[1740748916817,7.30951067,138.07,138.01,7.2502]
[1740748917014,0.04940133,138.07,138.01,7.2502]
[1740748917210,0.04940133,138.07,137.99,15.74]
[1740748918013,3.8615,138.13,137.99,15.74]
[1740748918217,11.12160934,138.13,137.99,15.74]
[1740748918420,11.12160934,138.13,138.05,7.2482]
[1740748918619,11.12160934,138.13,138.06,15.74]
[1740748918920,18.36640934,138.13,138.06,15.74]
[1740748919121,0.04686229,138.11,138.08,0.04833956]
[1740748920011,7.30697163,138.11,138.08,0.04833956]
[1740748920415,0.04686229,138.11,138.08,7.29503956]
[1740748920612,0.04686229,138.11,138.08,0.04833956]
[1740748921314,7.30697163,138.11,137.93,39.85105407]
[1740748921515,7.247,138.09,137.94,15.78]
[1740748921820,247.5,138.21,137.94,15.78]
[1740748922020,3.736,138.15,137.95,2.72361349]
[1740748922223,3.736,138.15,137.98,39.85105407]
[1740748922421,10.99610934,138.15,137.99,17.32938038]
[1740748922622,0.04611738,138.08,138.07,7.2476]
[1740748922823,0.04611738,138.08,138.07,23.1276]
[1740748923022,3.736,138.15,138.07,15.88]
[1740748923222,7.2444,138.14,138.07,15.88]
[1740748923426,10.99610934,138.15,138.07,15.88]
[1740748923624,3.736,138.15,138.1,7.2457]
[1740748923829,3.736,138.15,138.07,210.88]
[1740748923830,10.99610934,138.15,138.07,210.88]
[1740748924122,10.99610934,138.15,138.07,218.1274]
[1740748924321,10.99610934,138.15,138.07,210.88]
[1740748924522,0.05351197,138.12,138.1,0.04743725]
[1740748926123,7.31362131,138.12,138.1,0.04743725]
[1740748926827,0.05351197,138.12,138.1,0.04743725]
[1740748927423,0.05351197,138.12,138.11,7.2455]
[1740748928025,1.197e-05,138.12,138.11,202.2455]
[1740748929224,1.197e-05,138.12,138.1,7.29333725]
[1740748929426,1.197e-05,138.12,138.1,0.04743725]
[1740748929625,1.197e-05,138.12,138.04,9.85357994]
[1740748929830,7.26012131,138.12,138.04,3.98817994]
[1740748930030,3.6294,138.11,138.09,3.98817994]
[1740748930226,3.6094,138.11,138.07,79.99326437]
[1740748931029,3.6094,138.11,138.08,0.05160051]
[1740748932133,3.6094,138.11,138.07,79.99326437]
[1740748932329,1.197e-05,138.12,138.08,16.0]
[1740748932931,1.197e-05,138.12,138.08,211.0]
[1740748933134,1.197e-05,138.12,138.11,7.2455]
[1740748933435,231.7,138.29,138.08,214.62]
[1740748933635,231.7,138.29,138.08,211.0]
[1740748934030,247.72,138.29,138.08,211.0]
[1740748934230,231.7,138.29,138.09,1.44833079]
[1740748934535,0.05011007,138.2,138.1,231.7]
[1740748934731,0.05011007,138.2,138.1,426.7]
[1740748934935,16.04,138.28,138.1,195.0]
[1740748935136,0.05401301,138.16,138.11,16.04]
[1740748935338,37.77,138.28,138.11,16.04]
[1740748935639,0.05397902,138.15,138.11,16.04]
[1740748935844,7.2419,138.18,138.11,16.04]
[1740748936039,0.05213615,138.14,138.11,16.04]
[1740748936343,0.05213615,138.14,138.11,96.03326437]
[1740748937129,25.2757,138.22,138.11,79.99326437]
[1740748937340,16.14,138.21,138.11,79.99326437]
[1740748937734,3.5457,138.22,138.11,79.99326437]
[1740748937930,3.7421,138.26,138.16,7.2427]
[1740748938141,3.5457,138.25,138.17,16.3]
[1740748938340,0.04607237,138.22,138.2,0.04628432]
[1740748938836,7.28577237,138.22,138.2,0.04628432]
[1740748939239,0.04607237,138.22,138.2,0.04628432]
[1740748940033,7.237e-05,138.22,138.2,198.66628432]
[1740748940436,7.237e-05,138.22,138.21,7.2402]
[1740748940836,7.237e-05,138.22,138.2,195.04628432]
[1740748941739,7.237e-05,138.22,138.2,0.04628432]
[1740748943337,3.62007237,138.22,138.13,16.4]
[1740748943545,7.5344,138.21,138.13,16.4]
[1740748943846,7.5344,138.21,138.16,79.99326437]
[1740748944353,16.4683709,138.2,138.16,62.51148241]
[1740748944643,16.4683709,138.2,138.14,118.88322882]
[1740748945442,7.2434,138.15,138.14,116.56792882]
[1740748945643,23.7034,138.15,138.14,84.06221727]
[1740748945843,49.0534,138.15,138.14,15.69731727]
[1740748946047,28.9739,138.14,138.13,216.84590338]
[1740748946245,50.7439,138.14,138.13,100.76310338]
[1740748946448,25.35,138.14,138.11,247.67339339]
[1740748946642,28.975,138.12,138.11,247.67339339]
[1740748947051,32.595,138.12,138.11,247.67339339]
[1740748947350,7.245,138.12,138.11,182.16769339]
[1740748947549,231.64866942,138.13,138.02,199.92868325]
[1740748947752,231.64866942,138.13,138.03,21.72]
[1740748948050,0.05207338,138.09,138.03,21.72]
[1740748948350,0.05207338,138.09,138.04,21.72]
[1740748948549,0.05207338,138.09,138.02,199.92868325]
[1740748948952,28.9787,138.05,138.02,199.92868325]
[1740748949151,38.27,138.04,138.02,199.92868325]
[1740748949455,231.7,138.03,138.02,199.92868325]
[1740748949954,235.32,138.03,138.02,199.92868325]
[1740748950152,242.5697,138.03,138.02,187.45148325]
[1740748950352,242.5697,138.03,138.02,138.59088325]
[1740748950556,242.5697,138.03,138.02,122.06088325]
[1740748951150,352.78794504,138.03,137.82,3.6233]
[1740748951354,349.16794504,138.03,137.94,21.72]
[1740748951554,349.16794504,138.03,137.98,21.72]
[1740748951753,349.16794504,138.03,138.0,21.72]
[1740748951954,0.04894156,138.02,137.96,16.52]
[1740748952356,117.46794504,138.03,138.01,138.18042065]
[1740748952556,66.29894504,138.03,138.02,145.43062065]
[1740748952763,5.17699905,138.04,138.02,138.18042065]
[1740748952956,5.22537894,138.04,138.03,138.18042065]
[1740748953155,193.12814812,138.05,138.03,138.18042065]
[1740748953454,170.59334812,138.05,138.04,138.18042065]
[1740748953658,128.60724812,138.05,138.04,138.18042065]
[1740748953860,39.68694316,138.11,138.04,138.18042065]
[1740748954061,39.68694316,138.11,138.1,21.72]
[1740748954559,39.68694316,138.11,138.09,0.05259628]
[1740748954761,39.68694316,138.11,138.09,21.77259628]
[1740748955156,39.68694316,138.11,138.09,0.05259628]
[1740748955566,39.68694316,138.11,138.1,138.18042065]
[1740748955858,39.68694316,138.11,138.1,21.72]
[1740748956060,43.30694316,138.11,137.89,21.77]
[1740748956356,39.68694316,138.11,138.05,21.72]
[1740748956560,39.68694316,138.11,138.08,21.72]
[1740748956761,39.68694316,138.11,138.07,21.72]
[1740748956962,39.68694316,138.11,138.06,21.72]
[1740748957158,39.68694316,138.11,138.02,16.58]
[1740748957456,0.04603874,138.1,138.04,138.18042065]
[1740748957858,0.04603874,138.1,138.02,16.58]
[1740748958161,0.04603874,138.1,138.04,138.18042065]
[1740748958356,0.04603874,138.1,138.02,16.58]
[1740748958657,7.2474,138.08,137.96,16.56]
[1740748958860,11.096,138.07,137.98,138.18042065]
[1740748959161,0.05119476,138.03,137.98,138.18042065]
[1740748959357,0.05119476,138.03,137.98,21.72]
[1740748959561,0.05119476,138.03,137.92,20.4026]
[1740748959858,16.56,138.05,137.98,21.72]
[1740748960066,0.05020725,137.99,137.98,21.72]
[1740748960256,16.56,138.05,137.97,7.2524]
[1740748960562,0.0555817,138.0,137.98,21.72]
[1740748960757,231.82,138.09,138.05,7.2482]
[1740748961057,231.82,138.09,138.04,138.18042065]
[1740748961263,231.82,138.09,137.99,3.5225]
[1740748961458,231.82,138.09,138.02,21.72]
[1740748961663,231.82,138.09,138.02,138.18042065]
[1740748961863,231.82,138.09,138.05,7.2485]
[1740748962066,0.04685497,138.07,138.06,138.18042065]
[1740748962270,0.04685497,138.07,138.05,138.18042065]
[1740748962666,0.04685497,138.07,138.06,21.72]
[1740748963168,0.04685497,138.07,138.04,0.0498657]
[1740748963464,0.04685497,138.07,138.05,21.72]
[1740748963762,3.66685497,138.07,138.04,0.0498657]
[1740748963966,3.603,138.06,137.94,3.7629]
[1740748964266,20.223,138.06,137.99,21.72]
[1740748964657,20.223,138.06,138.01,21.72]
[1740748964857,20.223,138.06,138.0,116.46042065]
[1740748965058,0.05276824,138.05,138.0,21.72]
[1740748965662,0.05276824,138.05,138.02,21.72]
[1740748965861,0.05276824,138.05,138.03,21.72]
[1740748966167,0.05208579,138.05,138.02,21.72]
[1740748966667,0.05208579,138.05,137.98,16.6]
[1740748966871,7.2446,138.13,138.04,138.18042065]
[1740748967171,231.86,138.16,138.08,138.18042065]
[1740748967361,7.242,138.18,138.12,7.2448]
[1740748967562,39.68694316,138.2,138.13,138.18042065]
[1740748967962,7.2419,138.18,138.13,116.46042065]
[1740748968266,0.0487598,138.18,138.15,0.05131398]
[1740748968664,0.0487598,138.18,138.1,138.18042065]
[1740748968665,56.30694316,138.2,138.08,16.6]
[1740748968860,0.04563137,138.18,138.15,0.05441793]
[1740748969167,0.04563137,138.18,138.08,154.78042065]
[1740748969567,3.6191,138.19,138.08,154.78042065]
[1740748969772,3.6191,138.19,138.08,162.02742065]
[1740748969958,3.6191,138.19,138.11,138.18042065]
[1740748970265,7.2422,138.18,138.14,138.18042065]
[1740748970459,0.05422737,138.16,138.14,138.18042065]
[1740748970658,0.05422737,138.16,138.14,21.72]
[1740748970860,0.05422737,138.16,138.08,16.6]
[1740748971062,0.05422737,138.16,138.1,138.18042065]
[1740748971365,0.05422737,138.16,138.09,138.18042065]
[1740748971766,0.05422737,138.16,138.13,138.18042065]
[1740748972170,0.05422737,138.16,138.14,138.18042065]
[1740748972673,0.05422737,138.16,138.08,16.6]
[1740748972870,0.05422737,138.16,138.14,138.18042065]
[1740748973069,0.05422737,138.16,138.15,145.42382065]
[1740748973473,0.05422737,138.16,138.15,7.2434]
[1740748973672,0.05422737,138.16,138.13,7.2442]
[1740748973872,270.01,138.15,137.97,195.0]
[1740748974080,28.9812,138.14,137.98,3.588]
[1740748974373,7.2483,138.06,138.0,7.2509]
[1740748974564,0.05332752,138.07,137.98,3.588]
[1740748974766,16.84,138.09,137.98,3.588]
[1740748974965,0.05029294,138.05,137.98,3.588]
[1740748975376,0.05029294,138.05,137.99,7.2513]
[1740748975879,0.05029294,138.05,137.98,3.588]
[1740748976574,3.8856,138.13,137.98,3.588]
[1740748976875,3.8856,138.13,137.98,198.588]
[1740748977375,3.8856,138.13,137.98,3.588]
[1740748977376,25.6156,138.13,137.98,3.588]
[1740748977569,7.2482,138.06,137.98,3.588]
[1740748977777,7.2482,138.06,138.04,0.04626303]
[1740748977976,7.2482,138.06,137.98,3.588]
[1740748978275,0.05225714,138.06,137.98,3.588]
[1740748978475,0.05225714,138.06,138.01,0.05168911]
[1740748978677,10.9802,138.07,138.01,0.05168911]
[1740748978871,0.04691172,138.05,138.01,0.05168911]
[1740748979970,7.29561172,138.05,138.01,0.05168911]
[1740748980473,7.2497,138.03,138.01,0.05168911]
[1740748980673,23.9497,138.03,137.95,3.7008]
[1740748981174,16.7,138.03,137.95,3.7008]
[1740748981674,16.7,138.03,137.97,7.2527]
[1740748981973,0.04868947,138.0,137.95,3.7008]
[1740748982178,0.04868947,138.0,137.93,3.521]
[1740748982377,0.04868947,138.0,137.88,7.448]
[1740748982577,38.43,138.03,137.88,7.448]
[1740748982782,7.30081542,137.95,137.88,10.7982]
[1740748982968,16.74691542,137.95,137.84,3.9072]
[1740748983173,16.74691542,137.95,137.84,7.448]
[1740748983478,0.05144564,137.91,137.88,7.2575]
[1740748983677,0.05144564,137.91,137.84,7.448]
[1740748984080,16.7,138.03,137.84,7.448]
[1740748984374,235.7201,138.05,137.85,1.45085237]
[1740748984580,3.7325,138.07,137.85,1.45085237]
[1740748984778,248.66,138.13,137.86,1.27335756]
[1740748984968,248.66,138.13,138.0,7.2512]
[1740748984969,7.2469,138.09,138.0,7.2512]
[1740748985172,0.0465008,138.01,137.98,16.85207135]
[1740748985373,16.78,138.08,137.9,426.88]
[1740748985671,0.04785012,138.01,137.98,0.04650547]
[1740748985871,16.78,138.08,137.98,0.04650547]
[1740748986074,39.68694316,138.11,137.97,16.84]
[1740748986678,7.2462,138.1,138.01,7.2504]
[1740748987080,0.0459263,138.07,138.04,0.04922025]
[1740748988284,7.2493,138.04,137.97,7.2527]
[1740748988473,0.0459263,138.07,137.97,7.2527]
[1740748988781,16.82,138.08,137.97,7.2527]
[1740748988981,7.2494,138.04,137.98,7.2523]
[1740748989581,0.05136817,138.02,138.0,0.0520632]
[1740748990183,7.2461,138.1,138.03,7.2492]
[1740748990482,7.2461,138.1,138.0,3.6274]
[1740748990684,7.2456,138.11,138.04,7.249]
[1740748991080,292.11674316,138.13,138.0,3.6274]
[1740748991279,295.91474316,138.13,138.0,3.6274]
[1740748991479,0.05205701,138.09,138.06,0.05315953]
[1740748991978,7.2476,138.07,138.06,0.05315953]
[1740748992181,16.74,138.07,137.99,3.795]
[1740748992381,16.74,138.07,137.94,16.74]
[1740748992581,7.2485,138.06,138.01,7.2507]
[1740748992881,7.2485,138.06,137.94,16.74]
[1740748993179,16.74,138.07,137.94,16.74]
[1740748993485,0.05346024,138.01,137.99,0.05027184]
[1740748993676,7.2518,138.0,137.99,0.05027184]
[1740748993879,0.05103042,138.01,137.99,0.05027184]
[1740748994175,7.2513,138.0,137.99,0.05027184]
[1740748994574,0.05103042,138.01,137.99,0.05027184]
[1740748995385,7.30213042,138.01,137.99,0.05027184]
[1740748995587,0.05103042,138.01,137.99,0.05027184]
[1740748995987,7.2513,138.0,137.99,0.05027184]
[1740748996381,7.2542,137.95,137.9,7.2561]
[1740748996682,231.94,138.03,137.91,16.66]
[1740748996899,11.1192,138.05,137.91,16.66]
[1740748997393,0.05537501,137.99,137.91,16.66]
[1740748998083,0.05537501,137.99,137.95,7.2536]
[1740748998290,0.05537501,137.99,137.91,16.66]
[1740748999391,248.61537501,137.99,137.87,7.5685]
[1740748999587,248.56,137.99,137.87,7.5685]
[1740748999988,0.05137716,137.94,137.87,7.5685]
[1740749000884,7.2551,137.93,137.87,7.5685]
[1740749001081,0.05137716,137.94,137.87,7.5685]
[1740749001382,7.2566,137.9,137.87,7.5685]
[1740749001586,20.6312,137.98,137.87,7.5685]
[1740749001983,7.2569,137.9,137.87,7.5685]
[1740749002189,7.7303,137.97,137.87,7.5685]
[1740749002190,0.05090761,137.94,137.87,3.869]
[1740749002487,0.05090761,137.94,137.88,3.6502]
[1740749002886,0.05090761,137.94,137.87,3.869]
[1740749003086,7.2559,137.92,137.87,3.869]
[1740749003287,0.05090761,137.94,137.87,3.869]
[1740749003487,231.98,137.97,137.87,3.869]
[1740749003692,0.05068765,137.92,137.87,3.869]
[1740749003895,11.6015,138.03,137.87,198.869]
[1740749004084,7.2515,138.0,137.87,198.869]
[1740749004288,11.6015,138.03,137.87,198.869]
[1740749004687,7.2519,137.99,137.89,7.2567]
[1740749004894,16.88,138.01,137.87,3.869]
[1740749005093,0.05283772,137.95,137.93,0.04916544]
[1740749005294,7.2531,137.97,137.93,0.04916544]
[1740749005591,0.05483904,137.95,137.93,0.04916544]
[1740749005782,7.30873904,137.95,137.93,0.04916544]
[1740749005981,0.05483904,137.95,137.93,0.04916544]
[1740749007189,43.5,137.93,137.73,29.72455115]
[1740749007393,43.5,137.91,137.73,29.72455115]
[1740749007698,43.5,137.87,137.73,29.72455115]
[1740749007887,39.13,137.86,137.73,29.72455115]
[1740749008091,0.04802733,137.81,137.72,36.99045115]
[1740749008391,3.7636,137.81,137.72,29.72455115]
[1740749008594,0.05260317,137.78,137.72,29.72455115]
[1740749011590,0.05260317,137.78,137.66,17.26]
[1740749011788,3.7859,137.83,137.67,7.5913]
[1740749011988,3.7859,137.83,137.67,3.886]
[1740749012187,0.04958435,137.73,137.68,3.6088]
[1740749012388,3.7859,137.83,137.68,3.6088]
[1740749012596,3.7859,137.83,137.74,7.2649]
[1740749012800,7.2598,137.84,137.74,17.38]
[1740749013295,7.2598,137.84,137.75,3.7167]
[1740749013501,0.05493796,137.8,137.78,0.05105469]
[1740749013997,0.04742966,137.8,137.78,0.0463838]
[1740749014200,7.30962966,137.8,137.78,0.0463838]
[1740749014501,0.04742966,137.8,137.78,0.0463838]
[1740749014703,0.04742966,137.8,137.69,3.723]
[1740749014894,3.8035,137.82,137.69,21.063]
[1740749015093,3.8035,137.82,137.7,7.267]
[1740749015296,3.8035,137.82,137.69,21.063]
[1740749015706,3.8035,137.82,137.72,7.2659]
[1740749016002,0.0534406,137.77,137.69,21.063]
[1740749016400,17.3534406,137.77,137.57,246.787]
[1740749016703,17.3,137.77,137.68,7.268]
[1740749016904,0.04688096,137.68,137.65,17.32]
[1740749017208,0.05489404,137.68,137.65,17.32]
[1740749017408,0.05489404,137.68,137.67,7.2681]
[1740749017610,0.05489404,137.68,137.65,17.32]
[1740749017909,0.05489404,137.68,137.63,17.28]
[1740749018306,7.2642,137.76,137.62,17.26]
[1740749018507,0.04831362,137.67,137.65,7.2693]
[1740749018708,3.8405,137.75,137.65,7.2693]
[1740749019008,0.05329549,137.67,137.66,7.2692]
[1740749019208,25.065,137.77,137.62,17.26]
[1740749019405,7.765,137.77,137.62,17.26]
[1740749019605,7.765,137.77,137.7,7.267]
[1740749020005,21.73,137.72,137.58,7.5805]
[1740749020205,7.2674,137.7,137.58,7.5805]
[1740749020406,0.05245165,137.66,137.64,0.04606519]
[1740749020609,21.2205,137.71,137.64,0.04606519]
[1740749020910,0.05180215,137.66,137.64,0.04606519]
[1740749021210,21.73,137.7,137.58,7.5805]
[1740749021510,29.4708,137.69,137.57,1.45380533]
[1740749022010,29.4708,137.69,137.54,3.7738]
[1740749022305,0.0528651,137.63,137.54,3.7738]
[1740749022511,7.2683,137.68,137.58,7.2734]
[1740749022810,0.05572723,137.6,137.58,17.34]
[1740749023013,7.7408,137.69,137.59,3.5762]
[1740749023206,3.8537,137.69,137.59,3.5762]
[1740749023414,3.8405,137.71,137.59,3.5762]
[1740749023714,7.2676,137.7,137.59,10.8489]
[1740749024406,0.05017284,137.66,137.63,0.04666444]
[1740749025307,17.26,137.77,137.64,7.2699]
[1740749025513,21.0551,137.77,137.64,7.2699]
[1740749025715,7.2654,137.74,137.64,7.2699]
[1740749025908,64.5551,137.77,137.63,17.26]
[1740749026315,7.2677,137.69,137.63,17.26]
[1740749026616,0.05571294,137.71,137.59,3.5762]
[1740749026911,0.04870014,137.66,137.65,0.04694976]
[1740749027307,3.7951,137.67,137.65,0.04694976]
[1740749027506,3.84625838,137.67,137.65,0.04694976]
[1740749027708,7.2693,137.66,137.58,24.4932]
[1740749027911,3.7951,137.67,137.58,17.22]
[1740749028114,3.7951,137.67,137.55,20.7467]
[1740749028315,7.2708,137.63,137.56,7.2741]
[1740749028616,20.9751,137.67,137.55,20.7467]
[1740749028817,7.2694,137.66,137.59,7.2728]
[1740749029008,0.04843493,137.61,137.58,0.0529428]
[1740749029211,3.7951,137.67,137.55,20.7467]
[1740749029406,0.04808093,137.61,137.59,7.2729]
[1740749029611,3.7951,137.67,137.55,20.7467]
[1740749029811,232.44,137.71,137.55,20.7467]
[1740749030018,232.44,137.71,137.62,7.2708]
[1740749030218,232.44,137.71,137.62,17.16]
[1740749030712,232.44,137.71,137.65,0.04696307]
[1740749030914,0.04892956,137.68,137.65,0.04696307]
[1740749031510,7.2692,137.66,137.65,0.04696307]
[1740749032017,0.04892956,137.68,137.56,17.12]
[1740749032212,7.2716,137.62,137.56,17.12]
[1740749032514,3.76,137.67,137.56,17.12]
[1740749032707,3.5322,137.66,137.56,17.12]
[1740749032911,7.2601,137.66,137.56,17.12]
[1740749033116,7.2718,137.61,137.6,0.05208608]
[1740749033917,0.05050435,137.62,137.52,17.06]
[1740749034117,60.56,137.65,137.48,24.6056]
[1740749034313,7.2744,137.57,137.48,24.6056]
[1740749034712,7.2744,137.57,137.49,17.06]
[1740749035012,0.05289961,137.54,137.49,17.06]
[1740749035214,17.06,137.65,137.49,17.06]
[1740749035817,7.2601,137.66,137.54,7.2754]
[1740749036113,24.3001,137.66,137.54,17.04]
[1740749036517,0.054428,137.61,137.59,0.0539794]
[1740749036909,24.3001,137.66,137.59,0.0539794]
[1740749037115,0.04792444,137.61,137.59,0.0539794]
[1740749037313,7.2723,137.6,137.59,0.0539794]
[1740749039709,0.04874954,137.61,137.51,7.2767]
[1740749040016,21.73,137.64,137.49,20.5203]
[1740749040317,21.73,137.64,137.5,16.92]
[1740749040718,21.73,137.64,137.52,7.2763]
[1740749040919,0.04860102,137.58,137.5,16.92]
[1740749041912,0.04860102,137.58,137.49,3.5803]
[1740749042109,3.8033,137.6,137.49,3.5803]
[1740749042312,3.8033,137.6,137.4,232.6]
[1740749042313,0.05523451,137.55,137.45,16.86]
[1740749042518,25.5333,137.6,137.45,16.86]
[1740749042819,0.04779212,137.51,137.45,16.86]
[1740749043113,0.04985644,137.49,137.45,16.86]
[1740749043317,25.5333,137.6,137.45,16.86]
[1740749043517,14.5459,137.59,137.46,16.84]
[1740749043710,14.5459,137.59,137.45,16.82]
[1740749043911,7.2764,137.53,137.45,16.82]
[1740749044113,3.8033,137.6,137.45,16.82]
[1740749044522,3.8033,137.6,137.51,0.05448018]
[1740749044523,0.05519706,137.54,137.51,0.05448018]
[1740749044915,3.8033,137.6,137.5,16.8]
[1740749045119,0.05458131,137.54,137.51,0.05006463]
[1740749045315,0.05458131,137.54,137.51,7.55476463]
[1740749045515,3.8033,137.6,137.51,7.5047]
[1740749045720,0.05325853,137.54,137.51,7.55692515]
[1740749045916,9.92173579,137.66,137.52,232.64]
[1740749046121,12.14230737,137.67,137.66,7.2692]
[1740749046320,4.42245449,137.67,137.66,24.7092]
[1740749046720,4.42245449,137.67,137.66,28.3492]
[1740749046922,40.97652893,137.68,137.67,7.2686]
[1740749047618,40.97652893,137.68,137.66,17.44]
[1740749047813,40.97652893,137.68,137.67,7.2686]
[1740749048015,2.893e-05,137.68,137.67,7.2686]
[1740749048219,2.893e-05,137.68,137.67,10.9086]
[1740749049920,25.15921594,137.83,137.67,3.64]
[1740749050122,32.48491594,137.83,137.66,17.44]
[1740749051019,0.05202122,137.76,137.73,0.05214024]
[1740749051225,0.05202122,137.76,137.74,17.32]
[1740749051524,0.0512084,137.76,137.74,17.36597884]
[1740749053423,0.0512084,137.76,137.62,232.66]
[1740749053626,50.21,137.83,137.65,17.26]
[1740749054229,28.48,137.83,137.65,17.26]
[1740749054625,0.05318733,137.75,137.73,0.04793037]
[1740749054828,28.48,137.83,137.73,17.24]
[1740749055029,11.22,137.83,137.73,17.24]